Cogmind - Beta 13 X1 @@@ ROGUE MODE // 2023.08.22 @ 13:18:35 Player: VR-DUX Result: Destroyed by as-42814 with Assembled Blade Performance ------------- Evolutions (0) 0 Regions Visited (2) 400 Robots Destroyed (21) 105 Value Destroyed (334) 334 Prototype IDs (0) 0 Alien Tech Used (0) 0 Bonus (0) 0 TOTAL SCORE: 839 Bonus ------- None Cogmind --------- Core Integrity 0/250 Matter 300/300 Energy 100/100 System Corruption 0% Temperature Cool (0) Movement Core (50) Location -10/Mines Parts ------- > --- POWER (1) -------- (None) > --- PROPULSION (2) --- (None) > --- UTILITY (2) ------ (None) > --- WEAPON (2) ------- (None) > --- INVENTORY (5) ---- Light Ion Engine Medium Storage Unit Signal Interpreter Signal Interpreter Propulsion Shielding Peak State ------------ > --- POWER ------------ Ion Engine > --- PROPULSION ------- Light Treads Light Treads > --- UTILITY ---------- Large Storage Unit Signal Interpreter > --- WEAPON ----------- Small Laser Light Cannon > --- INVENTORY -------- Ion Engine Light Ion Engine Light Treads Medium Storage Unit Large Storage Unit Signal Interpreter Beam Cannon Light Assault Rifle Light Assault Rifle Mining Claw [Rating: 8] Favorites ----------- Power Ion Engine Engine Ion Engine Propulsion Light Treads Treads Light Treads Leg Aluminum Leg Utility Large Storage Unit Storage Large Storage Unit Processor Signal Interpreter Weapon Light Assault Rifle Energy Gun Small Laser Ballistic Gun Light Assault Rifle Ballistic Cannon Light Cannon Build | -11 -10 -10 ------- Run | Jun Mat Min Slots Evolved . | . . . Power . | . . . Propulsion . | . . . Utility . | . . . Weapon . | . . . Parts Attached 14 | . 13 1 Power 3 | . 3 . Engine 3 | . 3 . Core . | . . . Reactor . | . . . Propulsion 4 | . 4 . Treads 4 | . 4 . Leg . | . . . Wheel . | . . . Hover . | . . . Flight . | . . . Utility 3 | . 3 . Device . | . . . Storage 2 | . 2 . Processor 1 | . 1 . Hackware . | . . . Protection . | . . . Artifact . | . . . Weapon 4 | . 3 1 Energy Gun 2 | . 1 1 Energy Cannon . | . . . Ballistic Gun 1 | . 1 . Ballistic Cannon 1 | . 1 . Launcher . | . . . Special Weapon . | . . . Impact Weapon . | . . . Slashing Weapon . | . . . Piercing Weapon . | . . . Special Melee Weapon . | . . . Unidentified Prototypes . | . . . Parts Lost 2 | . . 2 Power . | . . . Propulsion . | . . . Utility . | . . . Weapon 2 | . . 2 Highest Loss Streak 1 | . . 1 To Critical Strikes . | . . . Average Slot Usage (%) 94 | . 94 90 Engine 13 | . 14 13 Treads 23 | . 23 26 Leg 3 | . 4 . Storage 13 | . 14 13 Processor 10 | . 9 13 Energy Gun 13 | . 14 10 Ballistic Gun 11 | . 11 13 Ballistic Cannon 2 | . 2 . Naked Turns 16 | . . 16 Heaviest Build 29 | 10 29 28 Greatest Support 40 | 20 40 40 Greatest Overweight (x) . | . . . Average Overweight (x) . | . . . Largest Inventory Capacity 15 | 8 15 15 Average Capacity 14 | 8 14 13 Most Carried 14 | 6 14 14 Average Carried 10 | 6 9 13 Final Capacity 15 | 8 15 5 Final Carried 14 | 6 14 5 Class Distribution -------------------- 100% | Mutant Dominant Class ---------------- Mutant | -10/Materials Mutant | -10/Mines Resources | -11 -10 -10 ----------- Run | Jun Mat Min Matter Collected 538 | 146 378 14 Remotely . | . . . Salvage Created 460 | . 407 53 Parts 44 | . 40 4 Haulers Intercepted 1 | . 1 . Recyclers Shooed . | . . . Parts Field Recycled . | . . . Retrieved Matter . | . . . Parts Self-Destructed . | . . . Prevented . | . . . Kills | -11 -10 -10 ------- Run | Jun Mat Min Combat Hostiles Destroyed 14 | . 11 3 Guns 10 | . 8 2 Cannons 3 | . 3 . AOE 1 | . . 1 Classes Destroyed 7 | . 7 . Worker 1 | . 1 . Builder 2 | . 2 . Hauler 1 | . 1 . Operator 1 | . 1 . Watcher 2 | . 2 . Swarmer 9 | . 6 3 Grunt 5 | . 5 . Best Kill Streak 5 | . 5 3 Combat Bots Only 3 | . 3 3 Max Kills in Single Turn 1 | . 1 1 Gunslinging . | . . . Exploded 1 | . . 1 Melee . | . . . Uniques/NPCs Destroyed . | . . . Combat | -11 -10 -10 -------- Run | Jun Mat Min Damage Taken 997 | . 493 504 Core 261 | . 38 223 Absorbed by Shields . | . . . Regen/Repaired (Parts) 147 | . 147 . Core Remaining (%) 100 | 100 . . Volleys Fired 106 | . 96 10 Largest 2 | . 2 2 Hottest 75 | . 75 60 Shots Fired 139 | . 123 16 Gun 104 | . 88 16 Cannon 35 | . 35 . Launcher . | . . . Special . | . . . Kinetic 98 | . 89 9 Thermal 27 | . 27 . Explosive . | . . . Electromagnetic 14 | . 7 7 Robot Hit Streak 14 | . 14 4 Robot Miss Streak 6 | . 6 3 Penetration Max . | . . . Secondary Targets 2 | . . 2 Max Gunslinging Chain 1 | . . 1 Shots Hit Robots 85 | . 76 9 Core Hits 32 | . 29 3 Critical Kills . | . . . Critical Parts Destroyed . | . . . Critical Strikes 1 | . 1 . Blast 1 | . 1 . Melee Attacks . | . . . Impact . | . . . Slashing . | . . . Piercing . | . . . Sneak Attacks . | . . . Combat Hostiles . | . . . Follow-up Attacks . | . . . Damage Inflicted 1099 | . 987 112 Guns 663 | . 574 89 Cannons 413 | . 413 . Explosions 23 | . . 23 Melee . | . . . Ramming . | . . . Kinetic 726 | . 684 42 Thermal 223 | . 200 23 Explosive . | . . . Electromagnetic 150 | . 103 47 Impact . | . . . Slashing . | . . . Piercing . | . . . Highest Corruption . | . . . Average Corruption . | . . . Corruption Purged . | . . . Corruption Blocked . | . . . Overload Shots . | . . . Overflow Damage 25 | . 11 14 Projectiles 11 | . 11 . Explosions 14 | . . 14 Melee . | . . . Knockbacks 4 | . 4 . Impact . | . . . Kinetic 4 | . 4 . Secondary . | . . . Self-Inflicted Damage . | . . . Shots . | . . . Rammed . | . . . Targets Rammed . | . . . Kicked . | . . . Crushed . | . . . Highest Temperature 126 | . 126 40 Average Temperature 28 | . 31 13 Received Heat Transfer 388 | . 168 220 Siege Activations . | . . . Robots Corrupted . | . . . Combat Hostiles . | . . . Parts Fried 1 | . 1 . Impact Corruptions . | . . . Robots Melted . | . . . Combat Hostiles . | . . . Parts Melted . | . . . Heat Transferred 500 | . 450 50 Parts Sabotaged . | . . . Parts Stolen . | . . . Parts Stripped . | . . . Power Chain Reactions 1 | . . 1 Missiles Intercepted . | . . . Alert | -11 -10 -10 ------- Run | Jun Mat Min Peak Influence 207 | . 207 73 Initial 8 | . . 8 Average 73 | . 74 65 Maximum Alert Level 1 | . 1 . Low Security (%) 96 | 100 95 100 Level 1 3 | . 4 . Level 2 . | . . . Level 3 . | . . . Level 4 . | . . . Level 5 . | . . . High Security . | . . . Max Security . | . . . Squads Dispatched 2 | . 2 . Investigation . | . . . Extermination . | . . . Reinforcement 2 | . 2 . Assault . | . . . Garrison . | . . . Intercept . | . . . Searches Triggered . | . . . Construction Impeded . | . . . Haulers Reinforced . | . . . Active Scanning Responses . | . . . Cargo Convoy Interrupts . | . . . Stealth | -11 -10 -10 --------- Run | Jun Mat Min Distress Signals 1 | . 1 . Communications Jammed . | . . . Distress Signals . | . . . Times Spotted 39 | . 21 18 Peak Tracking Total 9 | . 4 9 Tactical Retreats . | . . . Traps | -11 -10 -10 ------- Run | Jun Mat Min Traps Triggered . | . . . Indirectly . | . . . Trap Hack Attempts . | . . . Triggered . | . . . Disarmed . | . . . Reprogrammed . | . . . Reused . | . . . Traps Extracted . | . . . Installed . | . . . Triggered . | . . . Machines | -11 -10 -10 ---------- Run | Jun Mat Min Machines Disabled . | . . . Max in Single Turn . | . . . Machines Repaired . | . . . Machines Sabotaged . | . . . Overloaded Fab Kills . | . . . Hacking | -11 -10 -10 --------- Run | Jun Mat Min Machines Accessed 5 | . 5 . Terminals 2 | . 2 . Fabricators . | . . . Repair Stations 1 | . 1 . Recycling Units 2 | . 2 . Scanalyzers . | . . . Garrison Access . | . . . Total Hacks 15 | . 15 . Successful 12 | . 12 . Failed 3 | . 3 . Catastrophic . | . . . Database Lockouts . | . . . Manual 7 | . 7 . Terminals 7 | . 7 . Fabricators . | . . . Repair Stations 4 | . 4 . Recycling Units 4 | . 4 . Scanalyzers . | . . . Garrison Access . | . . . Terminal Hacks 6 | . 6 . Robot Analysis 5 | . 5 . Branch Access Points 1 | . 1 . Fabricator Hacks . | . . . Repair Station Hacks 4 | . 4 . Scan Component 2 | . 2 . Repair 2 | . 2 . Recycling Unit Hacks 2 | . 2 . Retrieve Components 2 | . 2 . Scanalyzer . | . . . Garrison Access Hacks . | . . . Unauthorized Hacks . | . . . Terminals . | . . . Fabricators . | . . . Repair Stations . | . . . Recycling Units . | . . . Scanalyzers . | . . . Garrison Access . | . . . Data Cores Recovered . | . . . Used . | . . . Hacking Detections 5 | . 5 . Full Trace Events . | . . . Feedback Events . | . . . Feedback Blocked . | . . . Robot Schematics Acquired . | . . . Robots Built . | . . . Authchips . | . . . Time . | . . . Total Robot Build Rating . | . . . Part Schematics Acquired . | . . . Parts Built . | . . . Authchips . | . . . Time . | . . . Total Part Build Rating . | . . . Parts Repaired 2 | . 2 . Time 52 | . 52 . Parts Recycled . | . . . Recycled Matter . | . . . Retrieved Matter . | . . . Retrieved Components 7 | . 7 . Parts Scanalyzed . | . . . Part Schematics Acquired . | . . . Parts Damaged . | . . . Bothacking | -11 -10 -10 ------------ Run | Jun Mat Min Used RIF Installer . | . . . Robots Hacked . | . . . Non-combat . | . . . Combat . | . . . Robot Hacks Applied . | . . . Relay Couplers Released . | . . . Fabnet Peak Effective % . | . . . Robots Rewired . | . . . Allies Hacked . | . . . Hacks Repelled . | . . . Allies | -11 -10 -10 -------- Run | Jun Mat Min Total Allies . | . . . Largest Group . | . . . Highest-Rated Group . | . . . Highest-Rated Ally . | . . . Total Orders . | . . . Ally Attacks . | . . . Total Damage . | . . . Kills . | . . . Allies Corrupted . | . . . Allies Melted . | . . . Intel | -11 -10 -10 ------- Run | Jun Mat Min Robot Analysis Total 5 | . 5 . Derelict Logs Recovered 2 | . . 2 Drone Launches . | . . . Drone Recoveries . | . . . Exploration | -11 -10 -10 ------------- Run | Jun Mat Min Turns Passed 1518 | 3 1357 158 Spaces Moved 799 | 3 692 104 Core 32 | . . 32 Treads 625 | . 553 72 Legs 142 | 3 139 . Wheels . | . . . Hover . | . . . Flight . | . . . Fastest Speed 50 | 120 120 50 Average Speed 148 | 120 151 126 Slowest Speed 160 | 120 160 160 Overloaded Moves . | . . . Propulsion Burnouts . | . . . Robots Hopped . | . . . Cave-ins Triggered . | . . . Exploration Rate (%) 43 | 1 95 34 Regions Visited 2 Branch Regions 1 Pre-discovered Areas . | . . . Known Exits Taken 1 | . 1 . Unknown Exits Taken 1 | 1 . . Scrap Searched . | . . . Spaces Dug . | . . . Terrain Destroyed 5 | . . 5 Melee . | . . . Projectile . | . . . AOE 5 | . . 5 Terrain Rammed . | . . . Walls Destroyed . | . . . Machines Disabled . | . . . Actions | -11 -10 -10 --------- Run | Jun Mat Min Total 1005 | 2 887 116 Wait 58 | . 58 . Move 797 | 2 691 104 Hop . | . . . Pick Up 20 | . 19 1 Fast Attach 1 | . 1 . Attach 8 | . 7 1 Detach . | . . . Swap 5 | . 5 . Drop 10 | . 10 . Fire 106 | . 96 10 Melee . | . . . Ram . | . . . Kick . | . . . Crush . | . . . Escape Stasis . | . . . Rewire . | . . . Trap . | . . . Miscellaneous . | . . . Route ------- -11/Junkyard -10/Materials (discovered 4 exits: *Mat x3 / *Min) -10/Mines History --------- Turn | Location | Event 1 | -11/Junkyard | Discovered new exit (range 0) 4 | -11/Junkyard | Entered Materials 136 | -10/Materials | Discovered new exit (range 16) 300 | -10/Materials | Build established: Mutant 363 | -10/Materials | Discovered new exit (range 7) 391 | -10/Materials | Identified exit to Mines 476 | -10/Materials | Discovered new exit (range 13) 607 | -10/Materials | Repaired Lgt. Treads 634 | -10/Materials | Repaired Lgt. Treads 830 | -10/Materials | Discovered new exit (range 14) 851 | -10/Materials | Identified exit to Materials 1361 | -10/Materials | Entered Mines 1455 | -10/Mines | Learned 4 Materials zone layouts 1459 | -10/Mines | Assembled infested the area 1464 | -10/Mines | Assisted by a Guerilla fighting off Assembled 1503 | -10/Mines | Released all parts (6) 1512 | -10/Mines | Core integrity fell below 50% 1515 | -10/Mines | Learned 8 Materials zone layouts 1519 | -10/Mines | Core integrity fell below 20% 1519 | -10/Mines | Destroyed by as-42814 with Assembled Blade Last Messages --------------- 01455_ Acquired derelict log, extracted data. Data stored: Materials zone layouts (x4). 01459_ ALERT: Infestation in the mines, dispatching Demolisher response squad. 01464_ A derelict emerges from the shadows: "You need to get out of here! I've been tracking a group of Assembled to figure out where they're coming from, and they're closing on this area, come on!" 01485_ EM Pulse Gun destroyed. 01503_ Released Ion Engine. 01503_ Released Signal Interpreter. 01503_ Released Lrg. Storage Unit. 01503_ Released Lgt. Assault Rifle. 01503_ Released Lgt. Treads. 01508_ as-25814 destroyed. 01508_ as-25565 destroyed. 01510_ as-30868 destroyed. 01513_ as-28673 destroyed. 01513_ as-08126 destroyed. 01515_ The unstable cave ceiling collapses. 01515_ Acquired derelict log, extracted data. Data stored: Materials zone layouts (x8). Map ----- +----------------------------------------------------+ | ???????????????????????????# #?????????? | | ???????????????????????????########## #####?????? | | ????????????? ????????????????????## ##????# | | ????????????# !%#??????????????????# ###?# | | ???????????? !%!#???????????##????# ## | | ???????????? == ## ###???## #????# | | ??????????? # #### #????# | | ??????????? #????## | | ?????????? ##????###### ## | | ??????????? #?????????### #?# | | ????????????? """ ####?????????# #?# | | ??????????? "" % #?????????# #?# | | ?????????? " % #?????????# #?# | | ?????????? # ###???????# ### | | ?????????? *% # ## #???????# ## | | ??????????? # ?# ### ######### # # | | ??????????? ??#### ##### =]]!!*/ # | | ???????????? ??????# ###???# [=**[!= | | ????????????# ##???????#a%#?????############ | | ?????????????#??????????# #????????????????## | | ????????????????????????# #?????????????????## | | ????????????????????????#%a#??????????????????## | | ????????????????????????# a#???????????????????# | | ????????????????????????# #??????????????????## | | ????????????????????????# ##????????????????## | | ????????????????????????#@a #????????????????# | | ????????????????????????# a #???????????????# | | ???????????????????????? #???????????????## | | ???????????????????????? ##????????????????### | | ??????????????????????? a #???????????????????## | | ??????????????????????? #????????????????????# | | ?????????????????????? aa#????????????????????? | | ?????????????????????? ????????????????????? | | ????????????????????? ????????????????????? | | ????????????????????? ### ???????????????????? | | ???????????????????? ??? ???????????????????? | | ???????????????????? ???!=???????????????????? | | ??????????????????? #???%|#??????????????????? | | ???????????????????# #?????|=??????????????????? | | ?????????????????????##?????? ???????????????????? | | ?????????????????????????????????????????????????? | | ?????????????????????????????????????????????????? | | ?????????????????????????????????????????????????? | | ?????????????????????????????????????????????????? | | ?????????????????????????????????????????????????? | | ?????????????????????????????????????????????????? | | ?????????????????????????????????????????????????? | | ?????????????????????????????????????????????????? | | ?????????????????????????????????????????????????? | | ?????????????????????????????????????????????????? | +----------------------------------------------------+ Best States ------------- Heat Dissipation 25 Energy Generation 10 Energy Capacity 250 Matter Stores 300 Matter Capacity 300 Sight Range 16 Terrain Scan Density 10 Evasion (%) 55 Recoil Reduction 2 Item Schematics ----------------- None Robot Schematics ------------------ None Fabricated ------------ Nothing Alien Tech Used ----------------- None Achievements -------------- None Challenges ------------ None Game ------ Seed DynamicTeslaMantle Manual? 0 Play Time 00:15:57 Cumulative 68.4 hours Start 2023.08.22 @ 13:04:24 End 2023.08.22 @ 13:18:35 Sessions 1 Manual Loads 0 Difficulty Rogue Special Mode None Game No. 56 Rogue 56 Adventurer 0 Explorer 0 Win Type - Total 1 Types 1/0/0/0/0/0/0/0/0 Lore% 40 Gallery% 34 Achievement% 37 Wizard Run 0 Options --------- ASCII 0 Keyboard 0 Movement Mouse Keybinds 0 Fullscreen 1 Font 16/SmallcapsGlow Map View 84x54 Tactical HUD 1 Map Filters NONE Filters NONE Steam 1 RUN: 8ce11c4c-12cd-412f-97eb-782e192ae147